[Event "*** SCC Grand Prix: Titled Tuesday Blitz"]
[Site "Chess.com"]
[Date "2020.06.02"]
[Round "8"]
[White "Gerodot71"]
[Black "Michaelson_11"]
[Result "1-0"]
[WhiteElo "2371"]
[BlackElo "2028"]
[TimeControl "180+1"]
[EndTime "11:35:15 PDT"]
[Termination "Gerodot71 won by resignation"]

1. d4 {[%clk 0:03:00.9]} 1... Nf6 {[%clk 0:02:58]} 2. c4 {[%clk 0:03:01.3]} 2...
e6 {[%clk 0:02:56.2]} 3. Nf3 {[%clk 0:03:00.9]} 3... d5 {[%clk 0:02:55]} 4. g3
{[%clk 0:03:00.6]} 4... Bb4+ {[%clk 0:02:51.3]} 5. Bd2 {[%clk 0:03:00.1]} 5...
Bd6 {[%clk 0:02:49.3]} 6. Nc3 {[%clk 0:02:57.8]} 6... c6 {[%clk 0:02:49.6]} 7.
Bg5 {[%clk 0:02:57.1]} 7... Nbd7 {[%clk 0:02:36.5]} 8. e4 {[%clk 0:02:55]} 8...
dxe4 {[%clk 0:02:35.1]} 9. Nxe4 {[%clk 0:02:55.9]} 9... Be7 {[%clk 0:02:35.1]}
10. Nxf6+ {[%clk 0:02:54]} 10... Nxf6 {[%clk 0:02:36]} 11. Bg2 {[%clk
0:02:52.6]} 11... O-O {[%clk 0:02:35.6]} 12. O-O {[%clk 0:02:51.9]} 12... Ne4
{[%clk 0:02:25.4]} 13. Bxe7 {[%clk 0:02:49.5]} 13... Qxe7 {[%clk 0:02:26.3]} 14.
Qe2 {[%clk 0:02:49.2]} 14... Nf6 {[%clk 0:02:10.6]} 15. Rad1 {[%clk 0:02:46.6]}
15... Rd8 {[%clk 0:01:52.2]} 16. Ne5 {[%clk 0:02:43.6]} 16... Bd7 {[%clk
0:01:50.6]} 17. a3 {[%clk 0:02:35.3]} 17... Be8 {[%clk 0:01:48]} 18. b4 {[%clk
0:02:31.3]} 18... Rac8 {[%clk 0:01:43.9]} 19. Qb2 {[%clk 0:02:30.1]} 19... b6
{[%clk 0:01:39.2]} 20. a4 {[%clk 0:02:19.3]} 20... c5 {[%clk 0:01:31.6]} 21.
dxc5 {[%clk 0:02:18.3]} 21... bxc5 {[%clk 0:01:32.5]} 22. b5 {[%clk 0:02:18.8]}
22... Rd6 {[%clk 0:01:15.6]} 23. a5 {[%clk 0:02:08.4]} 23... Rcd8 {[%clk
0:01:12.8]} 24. Rxd6 {[%clk 0:02:08.3]} 24... Qxd6 {[%clk 0:01:13.7]} 25. Bf3
{[%clk 0:02:06.9]} 25... Qd4 {[%clk 0:01:08.3]} 26. Qe2 {[%clk 0:02:00.6]} 26...
Qd2 {[%clk 0:00:55.8]} 27. Qxd2 {[%clk 0:01:20.3]} 27... Rxd2 {[%clk 0:00:56.7]}
28. Rb1 {[%clk 0:01:21.1]} 28... Nd7 {[%clk 0:00:45.6]} 29. Nxd7 {[%clk
0:01:13.2]} 29... Rxd7 {[%clk 0:00:44.5]} 30. b6 {[%clk 0:01:13]} 30... axb6
{[%clk 0:00:44.6]} 31. axb6 {[%clk 0:01:13.9]} 31... Rd8 {[%clk 0:00:44.8]} 32.
b7 {[%clk 0:01:13.8]} 32... Rb8 {[%clk 0:00:44.9]} 33. Ra1 {[%clk 0:01:14.4]}
1-0

[Event "*** SCC Grand Prix: Titled Tuesday Blitz"]
[Site "Chess.com"]
[Date "2020.06.02"]
[Round "8"]
[White "PetrolulSah"]
[Black "chessbia"]
[Result "1-0"]
[WhiteElo "2230"]
[BlackElo "2110"]
[TimeControl "180+1"]
[EndTime "11:35:17 PDT"]
[Termination "PetrolulSah won on time"]

1. d4 {[%clk 0:03:00.9]} 1... d5 {[%clk 0:02:59.8]} 2. Nf3 {[%clk 0:02:56.9]}
2... Nf6 {[%clk 0:02:59.5]} 3. g3 {[%clk 0:02:57]} 3... Bg4 {[%clk 0:02:59]} 4.
Bg2 {[%clk 0:02:55.6]} 4... e6 {[%clk 0:02:59.4]} 5. O-O {[%clk 0:02:55.1]} 5...
Nbd7 {[%clk 0:02:58.9]} 6. c4 {[%clk 0:02:54.7]} 6... c6 {[%clk 0:02:58.7]} 7.
Qb3 {[%clk 0:02:52.6]} 7... Qb6 {[%clk 0:02:58.2]} 8. c5 {[%clk 0:02:52.6]} 8...
Qxb3 {[%clk 0:02:58.2]} 9. axb3 {[%clk 0:02:53.5]} 9... a6 {[%clk 0:02:58.8]}
10. b4 {[%clk 0:02:52.3]} 10... Rc8 {[%clk 0:02:55.7]} 11. Nc3 {[%clk
0:02:52.3]} 11... Be7 {[%clk 0:02:53.4]} 12. Nd2 {[%clk 0:02:46.6]} 12... e5
{[%clk 0:02:45.7]} 13. e3 {[%clk 0:02:39.1]} 13... O-O {[%clk 0:02:42]} 14. Nb3
{[%clk 0:02:39.1]} 14... exd4 {[%clk 0:02:38.3]} 15. exd4 {[%clk 0:02:38.1]}
15... Bd8 {[%clk 0:02:38.5]} 16. Na5 {[%clk 0:02:26.9]} 16... Bxa5 {[%clk
0:02:34.7]} 17. bxa5 {[%clk 0:02:26.9]} 17... Ne8 {[%clk 0:02:32]} 18. Re1
{[%clk 0:02:23.9]} 18... Nc7 {[%clk 0:02:30.6]} 19. b4 {[%clk 0:02:21.9]} 19...
Rfe8 {[%clk 0:02:24.8]} 20. Bf4 {[%clk 0:02:18.5]} 20... Ne6 {[%clk 0:02:20.6]}
21. Be3 {[%clk 0:02:18.3]} 21... Bh5 {[%clk 0:02:14.2]} 22. Na4 {[%clk 0:01:44]}
22... Bg6 {[%clk 0:02:09.1]} 23. Nb6 {[%clk 0:01:44]} 23... Rcd8 {[%clk
0:02:03.6]} 24. h4 {[%clk 0:01:34.9]} 24... h5 {[%clk 0:02:02]} 25. Bh3 {[%clk
0:01:33.5]} 25... Nf6 {[%clk 0:01:57.9]} 26. Rad1 {[%clk 0:01:23.5]} 26... Be4
{[%clk 0:01:54.1]} 27. Bg5 {[%clk 0:01:14.3]} 1-0

[Event "*** SCC Grand Prix: Titled Tuesday Blitz"]
[Site "Chess.com"]
[Date "2020.06.02"]
[Round "8"]
[White "neurisdr"]
[Black "Oleksandr_Bortnyk"]
[Result "0-1"]
[WhiteElo "2771"]
[BlackElo "2959"]
[TimeControl "180+1"]
[EndTime "11:35:21 PDT"]
[Termination "Oleksandr_Bortnyk won by resignation"]

1. e4 {[%clk 0:03:00.9]} 1... Nf6 {[%clk 0:03:00.2]} 2. e5 {[%clk 0:02:59.6]}
2... Nd5 {[%clk 0:03:00.5]} 3. c4 {[%clk 0:03:00.1]} 3... Nb6 {[%clk 0:03:00.4]}
4. c5 {[%clk 0:03:00.6]} 4... Nd5 {[%clk 0:03:00.9]} 5. Nc3 {[%clk 0:03:01.1]}
5... e6 {[%clk 0:03:01.4]} 6. Bc4 {[%clk 0:03:01.3]} 6... Nxc3 {[%clk 0:02:59]}
7. dxc3 {[%clk 0:03:00.7]} 7... Nc6 {[%clk 0:02:49.5]} 8. Bf4 {[%clk 0:02:56.6]}
8... Bxc5 {[%clk 0:02:39.3]} 9. Qg4 {[%clk 0:02:55.2]} 9... Bf8 {[%clk
0:02:39.6]} 10. Nf3 {[%clk 0:02:53.7]} 10... d5 {[%clk 0:02:39.4]} 11. O-O-O
{[%clk 0:02:50.8]} 11... Qe7 {[%clk 0:02:35.3]} 12. Bb3 {[%clk 0:02:44.6]} 12...
Bd7 {[%clk 0:02:20.7]} 13. Rhe1 {[%clk 0:02:38.5]} 13... h6 {[%clk 0:02:20.5]}
14. Bg3 {[%clk 0:02:36.5]} 14... O-O-O {[%clk 0:02:12.7]} 15. h4 {[%clk
0:02:36.3]} 15... g6 {[%clk 0:02:07.8]} 16. h5 {[%clk 0:02:36.2]} 16... g5
{[%clk 0:02:08]} 17. Nh2 {[%clk 0:02:28.9]} 17... Qc5 {[%clk 0:02:05.6]} 18. Qf3
{[%clk 0:02:28]} 18... d4 {[%clk 0:01:56.5]} 19. Qxf7 {[%clk 0:02:19.3]} 19...
Be7 {[%clk 0:00:38.2]} 20. Bxe6 {[%clk 0:02:09]} 20... Rhf8 {[%clk 0:00:33]} 21.
Bxd7+ {[%clk 0:02:08.1]} 21... Rxd7 {[%clk 0:00:33.9]} 22. Qe6 {[%clk
0:02:07.8]} 22... Rd8 {[%clk 0:00:30.2]} 23. c4 {[%clk 0:02:03.7]} 23... Kb8
{[%clk 0:00:27.6]} 24. Rd3 {[%clk 0:02:01.3]} 24... Nb4 {[%clk 0:00:26.4]} 25.
Rb3 {[%clk 0:02:01.3]} 25... d3 {[%clk 0:00:22.5]} 26. Rd1 {[%clk 0:01:59.5]}
26... d2+ {[%clk 0:00:20.3]} 27. Kb1 {[%clk 0:01:59.5]} 27... Qd4 {[%clk
0:00:20.6]} 28. Qf5 {[%clk 0:01:54.4]} 28... Qxc4 {[%clk 0:00:20.8]} 29. Rxb4
{[%clk 0:01:36.8]} 29... Bxb4 {[%clk 0:00:21.7]} 30. a3 {[%clk 0:01:29.2]} 30...
Bxa3 {[%clk 0:00:20.5]} 31. Qc2 {[%clk 0:01:29.8]} 31... Qxc2+ {[%clk
0:00:04.4]} 32. Kxc2 {[%clk 0:01:29.1]} 32... Bf8 {[%clk 0:00:04.5]} 33. Ng4
{[%clk 0:01:27.7]} 33... Rd4 {[%clk 0:00:04.7]} 34. b3 {[%clk 0:01:25.7]} 34...
Rxg4 {[%clk 0:00:04.5]} 0-1

[Event "*** SCC Grand Prix: Titled Tuesday Blitz"]
[Site "Chess.com"]
[Date "2020.06.02"]
[Round "8"]
[White "econpower"]
[Black "Khamrakulov_Djurabek"]
[Result "1-0"]
[WhiteElo "2655"]
[BlackElo "2796"]
[TimeControl "180+1"]
[EndTime "11:35:25 PDT"]
[Termination "econpower won by resignation"]

1. c4 {[%clk 0:03:00.9]} 1... e5 {[%clk 0:02:59.5]} 2. g3 {[%clk 0:03:01.2]}
2... Nf6 {[%clk 0:02:59.2]} 3. Bg2 {[%clk 0:03:01.5]} 3... c6 {[%clk 0:02:59.3]}
4. Nc3 {[%clk 0:03:01.5]} 4... Be7 {[%clk 0:02:58]} 5. d3 {[%clk 0:02:58.6]}
5... O-O {[%clk 0:02:55.1]} 6. Nf3 {[%clk 0:02:58.5]} 6... d5 {[%clk 0:02:55.1]}
7. cxd5 {[%clk 0:02:53.9]} 7... cxd5 {[%clk 0:02:55.3]} 8. O-O {[%clk
0:02:54.6]} 8... Nc6 {[%clk 0:02:55.5]} 9. a3 {[%clk 0:02:54.7]} 9... h6 {[%clk
0:02:54.5]} 10. b4 {[%clk 0:02:54.8]} 10... a6 {[%clk 0:02:50.9]} 11. Bb2 {[%clk
0:02:54.8]} 11... Be6 {[%clk 0:02:49.8]} 12. Rc1 {[%clk 0:02:53.4]} 12... Rc8
{[%clk 0:02:37.2]} 13. Na4 {[%clk 0:02:53]} 13... e4 {[%clk 0:02:32.1]} 14. Nd4
{[%clk 0:02:47.4]} 14... Nxd4 {[%clk 0:02:11.1]} 15. Bxd4 {[%clk 0:02:46.3]}
15... Rxc1 {[%clk 0:02:09.9]} 16. Qxc1 {[%clk 0:02:46.3]} 16... Qd7 {[%clk
0:01:34.9]} 17. Nc5 {[%clk 0:02:35.5]} 17... Bxc5 {[%clk 0:01:34.4]} 18. bxc5
{[%clk 0:02:34.7]} 18... Qe7 {[%clk 0:01:24.6]} 19. Qb2 {[%clk 0:02:31.9]} 19...
exd3 {[%clk 0:01:20.5]} 20. exd3 {[%clk 0:02:27.9]} 20... Rc8 {[%clk 0:01:18.3]}
21. Bxf6 {[%clk 0:02:13.6]} 21... Qxf6 {[%clk 0:01:09.4]} 22. Qxf6 {[%clk
0:02:13.2]} 22... gxf6 {[%clk 0:01:09.1]} 23. d4 {[%clk 0:02:14.1]} 23... Rc7
{[%clk 0:00:46.1]} 24. Rb1 {[%clk 0:02:13.3]} 24... Kf8 {[%clk 0:00:38.4]} 25.
f4 {[%clk 0:01:34.7]} 25... Ke7 {[%clk 0:00:27.6]} 26. Kf2 {[%clk 0:01:34.7]}
26... Kd8 {[%clk 0:00:26.4]} 27. Bf3 {[%clk 0:01:31.8]} 27... Kc8 {[%clk
0:00:20.9]} 28. g4 {[%clk 0:01:25.1]} 28... f5 {[%clk 0:00:20.9]} 29. g5 {[%clk
0:01:24.5]} 29... hxg5 {[%clk 0:00:16.4]} 30. fxg5 {[%clk 0:01:24.4]} 30... f4
{[%clk 0:00:16.8]} 31. h4 {[%clk 0:01:22.6]} 31... f6 {[%clk 0:00:06.8]} 32. g6
{[%clk 0:01:15.4]} 32... Bf5 {[%clk 0:00:06.8]} 33. Rg1 {[%clk 0:01:15.6]} 33...
Rg7 {[%clk 0:00:05.3]} 34. h5 {[%clk 0:01:15.6]} 34... Kd7 {[%clk 0:00:04.4]}
35. Bxd5 {[%clk 0:01:15.6]} 1-0

[Event "*** SCC Grand Prix: Titled Tuesday Blitz"]
[Site "Chess.com"]
[Date "2020.06.02"]
[Round "8"]
[White "Shota_Azaladze"]
[Black "Reality-Stone"]
[Result "1-0"]
[WhiteElo "2814"]
[BlackElo "2492"]
[TimeControl "180+1"]
[EndTime "11:35:25 PDT"]
[Termination "Shota_Azaladze won by checkmate"]

1. Nf3 {[%clk 0:03:00.9]} 1... d5 {[%clk 0:02:57]} 2. g3 {[%clk 0:03:00.9]} 2...
c6 {[%clk 0:02:56.9]} 3. Bg2 {[%clk 0:03:01.4]} 3... Bg4 {[%clk 0:02:56.8]} 4.
O-O {[%clk 0:03:02.3]} 4... e6 {[%clk 0:02:55.3]} 5. d4 {[%clk 0:03:02.1]} 5...
Bd6 {[%clk 0:02:54.6]} 6. Nbd2 {[%clk 0:03:02.6]} 6... Nf6 {[%clk 0:02:47.6]} 7.
Re1 {[%clk 0:03:02.4]} 7... O-O {[%clk 0:02:46]} 8. e4 {[%clk 0:03:02.3]} 8...
dxe4 {[%clk 0:02:45.8]} 9. Nxe4 {[%clk 0:03:03.2]} 9... Nxe4 {[%clk 0:02:46.1]}
10. Rxe4 {[%clk 0:03:04.1]} 10... Bf5 {[%clk 0:02:46]} 11. Re1 {[%clk
0:03:04.3]} 11... Nd7 {[%clk 0:02:45]} 12. Nh4 {[%clk 0:03:02.2]} 12... Re8
{[%clk 0:02:42]} 13. Nxf5 {[%clk 0:02:58.1]} 13... exf5 {[%clk 0:02:42.9]} 14.
c3 {[%clk 0:02:57.4]} 14... Nf6 {[%clk 0:02:41.7]} 15. Bg5 {[%clk 0:02:50.3]}
15... Rxe1+ {[%clk 0:02:39.8]} 16. Qxe1 {[%clk 0:02:51.2]} 16... h6 {[%clk
0:02:40.3]} 17. Bd2 {[%clk 0:02:47.8]} 17... Qd7 {[%clk 0:02:40.4]} 18. Qe2
{[%clk 0:02:44.1]} 18... Re8 {[%clk 0:02:40.8]} 19. Qd3 {[%clk 0:02:44.6]} 19...
Ne4 {[%clk 0:02:40.3]} 20. Be3 {[%clk 0:02:44.1]} 20... Qe6 {[%clk 0:02:20.1]}
21. c4 {[%clk 0:02:42]} 21... Nf6 {[%clk 0:02:09.3]} 22. Rd1 {[%clk 0:02:39.7]}
22... f4 {[%clk 0:02:05]} 23. d5 {[%clk 0:02:35]} 23... cxd5 {[%clk 0:02:02.8]}
24. cxd5 {[%clk 0:02:35.9]} 24... Qg4 {[%clk 0:01:59]} 25. Bxa7 {[%clk
0:02:32.2]} 25... fxg3 {[%clk 0:01:55.4]} 26. hxg3 {[%clk 0:02:32.3]} 26... Qa4
{[%clk 0:01:42.3]} 27. Bd4 {[%clk 0:02:28.1]} 27... Qxa2 {[%clk 0:01:36.4]} 28.
Bxf6 {[%clk 0:02:17.2]} 28... gxf6 {[%clk 0:01:37.3]} 29. Qb5 {[%clk 0:02:16.9]}
29... Re7 {[%clk 0:01:33.4]} 30. Bf3 {[%clk 0:02:16.7]} 30... Qa7 {[%clk
0:01:30.2]} 31. Kg2 {[%clk 0:02:15.6]} 31... Rc7 {[%clk 0:01:22.8]} 32. Be4
{[%clk 0:01:56.8]} 32... Kg7 {[%clk 0:01:15.6]} 33. Bb1 {[%clk 0:01:50.1]} 33...
Qa6 {[%clk 0:01:05.1]} 34. Qb3 {[%clk 0:01:45.9]} 34... Qc4 {[%clk 0:01:02.9]}
35. Qf3 {[%clk 0:01:45.4]} 35... Qb4 {[%clk 0:00:48.6]} 36. Qf5 {[%clk
0:01:41.6]} 36... Qxb2 {[%clk 0:00:47.8]} 37. Re1 {[%clk 0:01:37.6]} 37... Be5
{[%clk 0:00:14.6]} 38. d6 {[%clk 0:01:37.3]} 38... Rc1 {[%clk 0:00:04.1]} 39.
Qh7+ {[%clk 0:01:35.8]} 39... Kf8 {[%clk 0:00:04.4]} 40. Qh8# {[%clk 0:01:36]}
1-0

[Event "*** SCC Grand Prix: Titled Tuesday Blitz"]
[Site "Chess.com"]
[Date "2020.06.02"]
[Round "8"]
[White "killer311"]
[Black "antoszu"]
[Result "1-0"]
[WhiteElo "2412"]
[BlackElo "2534"]
[TimeControl "180+1"]
[EndTime "11:35:26 PDT"]
[Termination "killer311 won by resignation"]

1. d4 {[%clk 0:03:00.9]} 1... Nf6 {[%clk 0:02:42.5]} 2. c4 {[%clk 0:02:59.9]}
2... e6 {[%clk 0:02:43]} 3. Nc3 {[%clk 0:02:59]} 3... Bb4 {[%clk 0:02:42.6]} 4.
e3 {[%clk 0:02:58.1]} 4... O-O {[%clk 0:02:39.5]} 5. Bd2 {[%clk 0:02:57.8]} 5...
b6 {[%clk 0:02:35.6]} 6. Nf3 {[%clk 0:02:58]} 6... Bb7 {[%clk 0:02:34.6]} 7. Bd3
{[%clk 0:02:57.2]} 7... d5 {[%clk 0:02:34.8]} 8. cxd5 {[%clk 0:02:56.6]} 8...
exd5 {[%clk 0:02:34.3]} 9. Rc1 {[%clk 0:02:57.1]} 9... Be7 {[%clk 0:02:33.7]}
10. Ne5 {[%clk 0:02:54]} 10... Nbd7 {[%clk 0:02:32.3]} 11. f4 {[%clk 0:02:53.9]}
11... c5 {[%clk 0:02:32.3]} 12. O-O {[%clk 0:02:52.8]} 12... Ne4 {[%clk
0:02:24.3]} 13. Nxe4 {[%clk 0:02:47.3]} 13... dxe4 {[%clk 0:02:25.2]} 14. Bc4
{[%clk 0:02:47.2]} 14... Nxe5 {[%clk 0:02:14.4]} 15. dxe5 {[%clk 0:02:45]} 15...
Bd5 {[%clk 0:02:13.2]} 16. Bxd5 {[%clk 0:02:25.3]} 16... Qxd5 {[%clk 0:02:14.1]}
17. Qc2 {[%clk 0:02:25.6]} 17... Rfd8 {[%clk 0:01:56.9]} 18. Rfd1 {[%clk
0:02:24.6]} 18... Qd3 {[%clk 0:01:47.7]} 19. Kf2 {[%clk 0:02:20]} 19... Qxc2
{[%clk 0:01:15.2]} 20. Rxc2 {[%clk 0:02:19.6]} 20... b5 {[%clk 0:01:15.8]} 21.
b3 {[%clk 0:02:14.2]} 21... Rd3 {[%clk 0:01:15.5]} 22. Ke2 {[%clk 0:02:11.4]}
22... Rad8 {[%clk 0:01:14.2]} 23. Rdc1 {[%clk 0:02:09.9]} 23... R8d5 {[%clk
0:00:48.5]} 24. Be1 {[%clk 0:02:07.4]} 24... f5 {[%clk 0:00:35.4]} 25. exf6
{[%clk 0:02:01.3]} 25... gxf6 {[%clk 0:00:36.3]} 26. g4 {[%clk 0:01:57.5]} 26...
h5 {[%clk 0:00:35.6]} 27. h3 {[%clk 0:01:56]} 27... Kf7 {[%clk 0:00:35.8]} 28.
f5 {[%clk 0:01:54.1]} 28... Rd8 {[%clk 0:00:33.9]} 29. Ba5 {[%clk 0:01:46.5]}
29... Rg8 {[%clk 0:00:32.2]} 30. Rg1 {[%clk 0:01:46.2]} 30... Rd5 {[%clk
0:00:30.5]} 31. Rd2 {[%clk 0:01:41.9]} 31... Rxf5 {[%clk 0:00:28.7]} 32. Rd7
{[%clk 0:01:33.4]} 32... Re5 {[%clk 0:00:27.9]} 33. Rxa7 {[%clk 0:01:31.1]}
33... hxg4 {[%clk 0:00:25.6]} 34. hxg4 {[%clk 0:01:32]} 34... Rh8 {[%clk
0:00:26.1]} 35. Rg2 {[%clk 0:01:30.3]} 35... Kg6 {[%clk 0:00:25.2]} 36. Bc3
{[%clk 0:01:28.4]} 36... Re6 {[%clk 0:00:25.2]} 37. g5 {[%clk 0:01:28.1]} 37...
fxg5 {[%clk 0:00:10.7]} 1-0

[Event "*** SCC Grand Prix: Titled Tuesday Blitz"]
[Site "Chess.com"]
[Date "2020.06.02"]
[Round "8"]
[White "biaf13"]
[Black "Logman74"]
[Result "0-1"]
[WhiteElo "2027"]
[BlackElo "2368"]
[TimeControl "180+1"]
[EndTime "11:35:29 PDT"]
[Termination "Logman74 won by checkmate"]

1. e4 {[%clk 0:03:00.9]} 1... c5 {[%clk 0:02:57.8]} 2. Nf3 {[%clk 0:03:00.7]}
2... d6 {[%clk 0:02:56.5]} 3. d4 {[%clk 0:03:01.2]} 3... cxd4 {[%clk 0:02:56.1]}
4. Nxd4 {[%clk 0:03:02.1]} 4... Nf6 {[%clk 0:02:55.9]} 5. Nc3 {[%clk 0:03:01.9]}
5... a6 {[%clk 0:02:56.2]} 6. Be3 {[%clk 0:03:01.3]} 6... e5 {[%clk 0:02:55.2]}
7. Nb3 {[%clk 0:03:01.9]} 7... Be7 {[%clk 0:02:55]} 8. f3 {[%clk 0:02:57.4]}
8... Be6 {[%clk 0:02:54.5]} 9. Qd2 {[%clk 0:02:57.1]} 9... O-O {[%clk
0:02:54.3]} 10. O-O-O {[%clk 0:02:57]} 10... a5 {[%clk 0:02:54.2]} 11. Bb5
{[%clk 0:02:47]} 11... Na6 {[%clk 0:02:43.8]} 12. g4 {[%clk 0:02:44.6]} 12...
Nc7 {[%clk 0:02:41.4]} 13. Bb6 {[%clk 0:02:39.9]} 13... Nd7 {[%clk 0:02:34.6]}
14. Bxd7 {[%clk 0:02:35.5]} 14... Bg5 {[%clk 0:02:17.8]} 15. Be3 {[%clk
0:02:19.4]} 15... Bxe3 {[%clk 0:02:16.3]} 16. Qxe3 {[%clk 0:02:20.3]} 16... Qxd7
{[%clk 0:02:15.8]} 17. a3 {[%clk 0:02:13.1]} 17... Bxb3 {[%clk 0:02:09.2]} 18.
cxb3 {[%clk 0:02:09.3]} 18... Nb5 {[%clk 0:02:08]} 19. Nxb5 {[%clk 0:02:06.4]}
19... Qxb5 {[%clk 0:02:06.9]} 20. Kb1 {[%clk 0:02:06.7]} 20... Ra6 {[%clk
0:02:04.4]} 21. Rd5 {[%clk 0:02:03.3]} 21... Qd7 {[%clk 0:01:58.3]} 22. Rhd1
{[%clk 0:02:02.5]} 22... Rc8 {[%clk 0:01:49.6]} 23. Qd2 {[%clk 0:02:02.2]} 23...
Qc7 {[%clk 0:01:42.7]} 24. Rxd6 {[%clk 0:01:56.8]} 24... Rxd6 {[%clk 0:01:38.8]}
25. Qxd6 {[%clk 0:01:57.7]} 25... Qc2+ {[%clk 0:01:38.5]} 26. Ka2 {[%clk
0:01:58]} 26... h6 {[%clk 0:01:37.2]} 27. Rd2 {[%clk 0:01:54.4]} 27... Qc1
{[%clk 0:01:37.1]} 28. Rd1 {[%clk 0:01:48]} 28... Qf4 {[%clk 0:01:35.5]} 29. Qd7
{[%clk 0:01:39.5]} 29... Rc2 {[%clk 0:01:32.1]} 30. Qxb7 {[%clk 0:01:31.2]}
30... Qxf3 {[%clk 0:01:27.1]} 31. Rd8+ {[%clk 0:01:26.3]} 31... Kh7 {[%clk
0:01:26.3]} 32. Qd5 {[%clk 0:01:13.5]} 32... Qc3 {[%clk 0:01:07.2]} 33. Qxe5
{[%clk 0:00:24.9]} 33... Rxb2+ {[%clk 0:01:03.2]} 34. Ka1 {[%clk 0:00:23.5]}
34... Qc1# {[%clk 0:01:01.8]} 0-1

[Event "*** SCC Grand Prix: Titled Tuesday Blitz"]
[Site "Chess.com"]
[Date "2020.06.02"]
[Round "8"]
[White "Gyapiking"]
[Black "Xeniya2005"]
[Result "1-0"]
[WhiteElo "2507"]
[BlackElo "2307"]
[TimeControl "180+1"]
[EndTime "11:35:30 PDT"]
[Termination "Gyapiking won by resignation"]

1. d4 {[%clk 0:03:00.9]} 1... Nf6 {[%clk 0:02:58.8]} 2. Nf3 {[%clk 0:03:01]}
2... d5 {[%clk 0:02:53.9]} 3. e3 {[%clk 0:03:00.8]} 3... e6 {[%clk 0:02:47.4]}
4. Bd3 {[%clk 0:03:00.2]} 4... c5 {[%clk 0:02:46.5]} 5. O-O {[%clk 0:03:00.1]}
5... Nc6 {[%clk 0:02:46.2]} 6. b3 {[%clk 0:02:59.6]} 6... Be7 {[%clk 0:02:45]}
7. Bb2 {[%clk 0:02:59.5]} 7... O-O {[%clk 0:02:44.6]} 8. Nbd2 {[%clk 0:02:59.3]}
8... b6 {[%clk 0:02:44.2]} 9. Ne5 {[%clk 0:02:59]} 9... Bb7 {[%clk 0:02:37.4]}
10. f4 {[%clk 0:02:58.8]} 10... h6 {[%clk 0:02:30.9]} 11. Qf3 {[%clk 0:02:45.3]}
11... cxd4 {[%clk 0:02:10.9]} 12. exd4 {[%clk 0:02:44.6]} 12... Rc8 {[%clk
0:02:08.3]} 13. a3 {[%clk 0:02:43.7]} 13... Nd7 {[%clk 0:01:51.4]} 14. Rae1
{[%clk 0:02:28.3]} 14... f5 {[%clk 0:01:10]} 15. g4 {[%clk 0:02:16.8]} 15...
Ndxe5 {[%clk 0:01:00.4]} 16. fxe5 {[%clk 0:02:16.2]} 16... g6 {[%clk 0:00:52.4]}
17. gxf5 {[%clk 0:02:15.3]} 17... gxf5 {[%clk 0:00:46.4]} 18. Kh1 {[%clk
0:02:15.4]} 18... Kh7 {[%clk 0:00:42.5]} 19. Rg1 {[%clk 0:02:15]} 19... Bg5
{[%clk 0:00:36.9]} 20. Bc1 {[%clk 0:02:12.4]} 20... Nxd4 {[%clk 0:00:29.2]} 21.
Qh5 {[%clk 0:02:12.3]} 21... Qe7 {[%clk 0:00:25.8]} 22. h4 {[%clk 0:01:51.5]}
22... Bf4 {[%clk 0:00:14.7]} 23. Nf3 {[%clk 0:01:35.7]} 23... Bxc1 {[%clk
0:00:09.8]} 24. Nxd4 {[%clk 0:01:35.5]} 24... Bf4 {[%clk 0:00:06.9]} 25. Rg6
{[%clk 0:01:29.7]} 25... Rg8 {[%clk 0:00:05.4]} 26. Reg1 {[%clk 0:01:29.3]}
26... Rcf8 {[%clk 0:00:02.7]} 27. Rxg8 {[%clk 0:01:18.9]} 27... Rxg8 {[%clk
0:00:02.6]} 28. Rxg8 {[%clk 0:01:18.9]} 28... Kxg8 {[%clk 0:00:02.7]} 29. Qg6+
{[%clk 0:01:18.8]} 29... Qg7 {[%clk 0:00:02.3]} 30. Qxg7+ {[%clk 0:01:18.1]}
30... Kxg7 {[%clk 0:00:02.6]} 31. Nxe6+ {[%clk 0:01:18.3]} 31... Kf7 {[%clk
0:00:01.7]} 32. Nxf4 {[%clk 0:01:18.5]} 32... d4+ {[%clk 0:00:02.1]} 33. Kh2
{[%clk 0:01:16.3]} 1-0

[Event "*** SCC Grand Prix: Titled Tuesday Blitz"]
[Site "Chess.com"]
[Date "2020.06.02"]
[Round "8"]
[White "ShahMatKanal"]
[Black "CMS13"]
[Result "1-0"]
[WhiteElo "2472"]
[BlackElo "2240"]
[TimeControl "180+1"]
[EndTime "11:35:38 PDT"]
[Termination "ShahMatKanal won by resignation"]

1. e4 {[%clk 0:03:00.9]} 1... e5 {[%clk 0:02:59.7]} 2. f4 {[%clk 0:02:59.8]}
2... exf4 {[%clk 0:02:59]} 3. Nf3 {[%clk 0:02:59.7]} 3... Be7 {[%clk 0:02:59.1]}
4. Bc4 {[%clk 0:02:59.6]} 4... Nf6 {[%clk 0:02:58.5]} 5. Nc3 {[%clk 0:02:57.3]}
5... O-O {[%clk 0:02:57.2]} 6. O-O {[%clk 0:02:54.4]} 6... Nxe4 {[%clk 0:02:52]}
7. Nxe4 {[%clk 0:02:33.4]} 7... d5 {[%clk 0:02:51.7]} 8. Bd3 {[%clk 0:02:32.6]}
8... dxe4 {[%clk 0:02:51.6]} 9. Bxe4 {[%clk 0:02:33.5]} 9... Re8 {[%clk
0:02:35]} 10. d4 {[%clk 0:02:23.5]} 10... Bd6 {[%clk 0:02:27.7]} 11. Bd3 {[%clk
0:02:15]} 11... Nc6 {[%clk 0:02:26.7]} 12. c3 {[%clk 0:02:15]} 12... Bg4 {[%clk
0:02:16.3]} 13. h3 {[%clk 0:02:02.9]} 13... Bh5 {[%clk 0:02:11.7]} 14. Qb3
{[%clk 0:02:02.8]} 14... Na5 {[%clk 0:01:35.1]} 15. Qd5 {[%clk 0:01:51.4]} 15...
c6 {[%clk 0:01:32.3]} 16. Qxh5 {[%clk 0:01:48.6]} 16... g6 {[%clk 0:01:29.5]}
17. Qh6 {[%clk 0:01:44.3]} 17... Qc7 {[%clk 0:01:10.5]} 18. Ng5 {[%clk
0:01:42.6]} 18... f6 {[%clk 0:01:00.3]} 19. Bxg6 {[%clk 0:01:37.7]} 19... hxg6
{[%clk 0:00:53.1]} 20. Qxg6+ {[%clk 0:01:33.5]} 20... Qg7 {[%clk 0:00:51.2]} 21.
Qxg7+ {[%clk 0:01:27.5]} 21... Kxg7 {[%clk 0:00:52.1]} 22. Nf3 {[%clk
0:01:22.2]} 22... Nc4 {[%clk 0:00:50.9]} 23. Nh4 {[%clk 0:01:17.3]} 23... Bc7
{[%clk 0:00:17.8]} 24. Bxf4 {[%clk 0:01:11.5]} 24... Bxf4 {[%clk 0:00:17.8]} 25.
Rxf4 {[%clk 0:01:12.4]} 25... Re2 {[%clk 0:00:17.8]} 26. Rf2 {[%clk 0:01:10]}
26... Rxf2 {[%clk 0:00:17.5]} 27. Kxf2 {[%clk 0:01:10.9]} 27... Nxb2 {[%clk
0:00:17.8]} 28. Rb1 {[%clk 0:01:11.2]} 28... Nc4 {[%clk 0:00:16.2]} 29. Rxb7+
{[%clk 0:01:09.3]} 29... Kh6 {[%clk 0:00:16.8]} 30. Nf5+ {[%clk 0:01:04]} 30...
Kg5 {[%clk 0:00:16.5]} 31. g4 {[%clk 0:01:04.9]} 31... Rh8 {[%clk 0:00:15]} 32.
Kg3 {[%clk 0:00:58.2]} 32... Rg8 {[%clk 0:00:14.1]} 33. h4+ {[%clk 0:00:56]}
33... Kg6 {[%clk 0:00:13.9]} 34. Ne7+ {[%clk 0:00:54.3]} 1-0